Cogmind - Beta 13 @@@ ROGUE MODE // 2024.04.02 @ 11:13:31 Player: MisterCrow Result: Destroyed by Y-45 Defender with Beam Rifle Performance ------------- Evolutions (2) 1000 Regions Visited (7) 1400 Robots Destroyed (64) 320 Value Destroyed (1293) 1293 Prototype IDs (2) 40 Alien Tech Used (0) 0 Bonus (0) 0 TOTAL SCORE: 4053 Bonus ------- None Cogmind --------- Core Integrity 0/550 Matter 361/400 Energy 85/100 System Corruption 0% Temperature Cool (9) Movement Rolling (80) Location -8/Materials Parts ------- > --- POWER (1) -------- (None) > --- PROPULSION (3) --- Wheel > --- UTILITY (4) ------ Medium Matter Pod Visual Processing Unit Salvage Targeting Computer > --- WEAPON (3) ------- Light Assault Rifle > --- INVENTORY (5) ---- Light Ion Engine Peak State ------------ > --- POWER ------------ Light Nuclear Core > --- PROPULSION ------- Aluminum Leg Aluminum Leg Aluminum Leg > --- UTILITY ---------- Medium Matter Pod Visual Processing Unit Sensor Array Salvage Targeting Computer > --- WEAPON ----------- Heavy Assault Rifle Heavy Assault Rifle Improved Assault Rifle > --- INVENTORY -------- Light Ion Engine Aluminum Leg Wheel Light Assault Rifle [Rating: 19] Favorites ----------- Power Light Nuclear Core Engine Light Ion Engine Power Core Light Nuclear Core Propulsion Aluminum Leg Leg Aluminum Leg Wheel Wheel Utility Visual Processing Unit Device Sensor Array Storage Medium Matter Pod Processor Visual Processing Unit Weapon Heavy Assault Rifle Energy Gun Particle Gun Ballistic Gun Heavy Assault Rifle Ballistic Cannon Slug Cannon Launcher Rocket Launcher Build | -11 -10 -10 -9 -9 -9 -8 -8 ------- Run | Yrd Mat Min Mat Min Exi Min Mat Slots Evolved 4 | . . . 2 . . . 2 Power . | . . . . . . . . Propulsion 1 | . . . 1 . . . . Utility 2 | . . . 1 . . . 1 Weapon 1 | . . . . . . . 1 Parts Attached 61 | 4 6 12 15 4 . 6 14 Power 9 | . 1 2 1 . . 2 3 Engine 6 | . 1 1 . . . 2 2 Core 3 | . . 1 1 . . . 1 Reactor . | . . . . . . . . Propulsion 19 | 2 2 6 4 . . 1 4 Treads . | . . . . . . . . Leg 18 | 2 2 6 4 . . 1 3 Wheel 1 | . . . . . . . 1 Hover . | . . . . . . . . Flight . | . . . . . . . . Utility 8 | . 2 1 2 1 . . 2 Device 2 | . . . 1 . . . 1 Storage 4 | . 1 1 1 . . . 1 Processor 2 | . 1 . . 1 . . . Hackware . | . . . . . . . . Protection . | . . . . . . . . Artifact . | . . . . . . . . Weapon 25 | 2 1 3 8 3 . 3 5 Energy Gun 3 | 1 . 1 1 . . . . Energy Cannon . | . . . . . . . . Ballistic Gun 14 | 1 1 . 3 1 . 3 5 Ballistic Cannon 3 | . . 1 1 1 . . . Launcher 5 | . . 1 3 1 . . . Special Weapon . | . . . . . . . . Impact Weapon . | . . . . . . . . Slashing Weapon . | . . . . . . . . Piercing Weapon . | . . . . . . . . Special Melee Weapon . | . . . . . . . . Unidentified Prototypes 2 | . . . 1 . . . 1 Parts Lost 21 | . 1 2 1 5 . 2 10 Power 3 | . . . . 1 . . 2 Propulsion 6 | . . . 1 2 . . 3 Utility 1 | . . . . . . . 1 Weapon 11 | . 1 2 . 2 . 2 4 Highest Loss Streak 9 | . 1 1 1 5 . 2 9 To Critical Strikes . | . . . . . . . . Average Slot Usage (%) 77 | . 81 95 83 53 55 72 85 Engine 5 | . 12 6 . . . 8 2 Core 3 | . . 7 10 . . . 5 Leg 17 | . 28 28 27 2 . 9 19 Device 1 | . . . 1 . . . 5 Storage 9 | . . 14 11 11 11 11 9 Processor 17 | . 12 14 11 18 22 22 18 Energy Gun 3 | . 6 9 6 1 . . . Ballistic Gun 15 | . 20 8 5 9 11 21 25 Ballistic Cannon 2 | . . 1 4 9 11 . . Launcher 1 | . . 4 5 . . . . Naked Turns . | . . . . . . . . Heaviest Build 19 | 4 11 18 19 14 12 12 19 Greatest Support 36 | 20 20 20 36 23 3 10 30 Greatest Overweight (x) 3 | . . . 1 3 3 3 1 Average Overweight (x) . | . . . . 2 3 1 . Largest Inventory Capacity 5 | 5 5 5 5 5 5 5 5 Average Capacity 5 | 5 5 5 5 5 5 5 5 Most Carried 5 | 4 5 5 5 5 4 5 5 Average Carried 3 | 1 3 4 4 3 4 3 3 Final Capacity 5 | 5 5 5 5 5 5 5 5 Final Carried 5 | 2 5 3 4 4 4 4 1 Class Distribution -------------------- 51% | Mutant 34% | Scavenger-Mutant 13% | Scavenger-Skirmisher Dominant Class ---------------- Mutant | -10/Materials Scavenger-Mutant | -10/Mines Scavenger-Mutant | -9/Materials Mutant | -9/Mines Mutant | -9/Exiles Scavenger-Mutant | -8/Mines Scavenger-Skirmisher | -8/Materials Resources | -11 -10 -10 -9 -9 -9 -8 -8 ----------- Run | Yrd Mat Min Mat Min Exi Min Mat Matter Collected 1843 | 232 138 360 182 127 . 373 431 Remotely . | . . . . . . . . Salvage Created 1959 | . 263 218 182 111 . 457 728 Parts 131 | . 20 10 26 4 . 30 41 Haulers Intercepted 1 | . . . . . . . 1 Recyclers Shooed 7 | . . . 1 1 . 4 1 Parts Field Recycled . | . . . . . . . . Retrieved Matter . | . . . . . . . . Parts Self-Destructed . | . . . . . . . . Prevented . | . . . . . . . . Kills | -11 -10 -10 -9 -9 -9 -8 -8 ------- Run | Yrd Mat Min Mat Min Exi Min Mat Combat Hostiles Destroyed 45 | . 7 7 8 2 . 11 10 Guns 37 | . 7 7 2 . . 11 10 Cannons 3 | . . . 1 2 . . . AOE 5 | . . . 5 . . . . Classes Destroyed 12 | . 3 2 2 1 . 2 2 Worker 8 | . . 1 3 . . 1 3 Builder 3 | . . . 2 . . 1 . Tunneler 1 | . . . . . . 1 . Hauler 1 | . . . . . . . 1 Recycler 5 | . . . . 1 . 2 2 Watcher 4 | . 2 . 1 . . . 1 Swarmer 20 | . 3 . 4 . . 9 4 Grunt 14 | . 4 4 3 . . 1 2 Duelist 1 | . . . . . . 1 . Sentry 6 | . . . 1 2 . . 3 Specialist 1 | . . . . . . . 1 Assembled 3 | . . 3 . . . . . Best Kill Streak 7 | . 4 3 7 2 . 5 7 Combat Bots Only 5 | . 4 3 5 2 . 4 5 Max Kills in Single Turn 3 | . 1 1 3 1 . 2 1 Gunslinging 1 | . . . . . . 1 . Exploded 3 | . . . 3 . . . . Melee . | . . . . . . . . Uniques/NPCs Destroyed . | . . . . . . . . Combat | -11 -10 -10 -9 -9 -9 -8 -8 -------- Run | Yrd Mat Min Mat Min Exi Min Mat Hostile Shots Fired 352 | . 36 57 35 36 . 48 140 Missed 103 | . 9 15 15 11 . 11 42 Damage Taken 3612 | . 305 562 316 375 . 504 1550 Core 1114 | . 83 121 64 122 . 168 556 Absorbed by Shields . | . . . . . . . . Regen/Repaired (Parts) 114 | . . . . . . . 114 Core Remaining (%) 43 | 100 . 18 . . . 11 . Volleys Fired 173 | . 27 31 22 16 . 33 44 Largest 3 | . 2 2 2 2 . 2 3 Hottest 113 | . 60 85 98 113 . 46 69 Shots Fired 365 | . 49 56 43 28 . 60 129 Gun 339 | . 49 56 32 13 . 60 129 Cannon 15 | . . . 1 14 . . . Launcher 11 | . . . 10 1 . . . Special . | . . . . . . . . Kinetic 296 | . 35 37 14 21 . 60 129 Thermal 44 | . . 19 19 6 . . . Explosive 11 | . . . 10 1 . . . Electromagnetic 14 | . 14 . . . . . . Robot Hit Streak 20 | . 9 7 6 12 . 13 20 Robot Miss Streak 4 | . 2 3 3 4 . 3 3 Penetration Max . | . . . . . . . . Secondary Targets 4 | . . 2 . . . 1 1 Max Gunslinging Chain 1 | . . 1 . . . 1 1 Shots Hit Robots 230 | . 33 33 20 18 . 42 84 Core Hits 104 | . 14 14 21 3 . 23 29 Critical Kills 3 | . . 1 1 1 . . . Critical Parts Destroyed 1 | . 1 . . . . . . Critical Strikes 6 | . 1 2 2 1 . . . Burn 2 | . . 1 1 . . . . Destroy 4 | . 1 1 1 1 . . . Melee Attacks . | . . . . . . . . Impact . | . . . . . . . . Slashing . | . . . . . . . . Piercing . | . . . . . . . . Sneak Attacks . | . . . . . . . . Combat Hostiles . | . . . . . . . . Follow-up Attacks . | . . . . . . . . Damage Inflicted 3855 | 7 445 456 826 309 . 624 1188 Guns 3013 | . 442 456 254 58 . 616 1187 Cannons 227 | . . . 20 207 . . . Explosions 590 | . . . 546 44 . . . Melee . | . . . . . . . . Ramming 25 | 7 3 . 6 . . 8 1 Kinetic 2725 | . 286 261 123 252 . 616 1187 Thermal 359 | . . 195 151 13 . . . Explosive 590 | . . . 546 44 . . . Electromagnetic 156 | . 156 . . . . . . Impact . | . . . . . . . . Slashing . | . . . . . . . . Piercing . | . . . . . . . . Highest Corruption . | . . . . . . . . Average Corruption . | . . . . . . . . Corruption Purged . | . . . . . . . . Corruption Blocked . | . . . . . . . . Overload Shots . | . . . . . . . . Overflow Damage 45 | . . . 32 13 . . . Projectiles 13 | . . . . 13 . . . Explosions 32 | . . . 32 . . . . Melee . | . . . . . . . . Knockbacks 1 | . . . . 1 . . . Impact . | . . . . . . . . Kinetic 1 | . . . . 1 . . . Secondary . | . . . . . . . . Self-Inflicted Damage 77 | . . . 71 6 . . . Shots 4 | . . . 3 1 . . . Rammed . | . . . . . . . . Targets Rammed 11 | 2 2 . 2 . . 3 2 Kicked 11 | 2 2 . 2 . . 3 2 Crushed . | . . . . . . . . Highest Temperature 264 | . 90 264 108 176 . . 38 Average Temperature 57 | . 45 92 36 88 . . 12 Received Heat Transfer 876 | . 144 123 96 126 . 72 315 Effects 1 | . . 1 . . . . . Energy Bleed 1 | . . 1 . . . . . Siege Activations . | . . . . . . . . Robots Corrupted . | . . . . . . . . Combat Hostiles . | . . . . . . . . Parts Fried . | . . . . . . . . Impact Corruptions . | . . . . . . . . Robots Melted . | . . . . . . . . Combat Hostiles . | . . . . . . . . Parts Melted . | . . . . . . . . Heat Transferred 1036 | . . 555 444 37 . . . Parts Sabotaged . | . . . . . . . . Parts Stolen . | . . . . . . . . Parts Stripped . | . . . . . . . . Power Chain Reactions . | . . . . . . . . Alert | -11 -10 -10 -9 -9 -9 -8 -8 ------- Run | Yrd Mat Min Mat Min Exi Min Mat Peak Influence 347 | . 209 161 347 99 . 275 266 Initial 81 | . . 81 . 71 . . . Average 109 | . 105 96 138 93 . 99 134 Maximum Alert Level 1 | . 1 . 1 . . 1 1 Low Security (%) 87 | 100 71 100 72 100 . 93 85 Level 1 12 | . 28 . 27 . . 6 14 Level 2 . | . . . . . . . . Level 3 . | . . . . . . . . Level 4 . | . . . . . . . . Level 5 . | . . . . . . . . High Security . | . . . . . . . . Max Security . | . . . . . . . . Squads Dispatched 4 | . . . 1 . . . 3 Investigation . | . . . . . . . . Extermination . | . . . . . . . . Reinforcement 4 | . . . 1 . . . 3 Assault . | . . . . . . . . Garrison . | . . . . . . . . Intercept . | . . . . . . . . Searches Triggered . | . . . . . . . . Construction Impeded . | . . . . . . . . Haulers Reinforced . | . . . . . . . . Active Scanning Responses . | . . . . . . . . Cargo Convoy Interrupts . | . . . . . . . . Stealth | -11 -10 -10 -9 -9 -9 -8 -8 --------- Run | Yrd Mat Min Mat Min Exi Min Mat Distress Signals 4 | . . 1 . . . . 3 Communications Jammed . | . . . . . . . . Distress Signals . | . . . . . . . . Times Spotted 70 | . 11 7 14 2 . 15 21 Peak Tracking Total 7 | . 4 4 5 2 . 3 7 Tactical Retreats 5 | . 1 2 . . . 2 . Traps | -11 -10 -10 -9 -9 -9 -8 -8 ------- Run | Yrd Mat Min Mat Min Exi Min Mat Traps Triggered 3 | . . . 3 . . . . Indirectly . | . . . . . . . . Trap Hack Attempts . | . . . . . . . . Triggered . | . . . . . . . . Disarmed . | . . . . . . . . Reprogrammed . | . . . . . . . . Reused . | . . . . . . . . Traps Extracted . | . . . . . . . . Installed . | . . . . . . . . Triggered . | . . . . . . . . Machines | -11 -10 -10 -9 -9 -9 -8 -8 ---------- Run | Yrd Mat Min Mat Min Exi Min Mat Machines Disabled 5 | . 1 . 2 2 . . . Max in Single Turn 2 | . 1 . 1 2 . . . Machines Repaired . | . . . . . . . . Machines Dismantled . | . . . . . . . . Machines Sabotaged . | . . . . . . . . Overloaded Fab Kills . | . . . . . . . . Hacking | -11 -10 -10 -9 -9 -9 -8 -8 --------- Run | Yrd Mat Min Mat Min Exi Min Mat Machines Accessed 6 | . . . 2 . 2 . 2 Terminals 3 | . . . 2 . . . 1 Fabricators . | . . . . . . . . Repair Stations 1 | . . . . . . . 1 Recycling Units . | . . . . . . . . Scanalyzers . | . . . . . . . . Garrison Access . | . . . . . . . . Total Hacks 18 | . . . 5 . 7 . 6 Successful 15 | . . . 4 . 7 . 4 Failed 3 | . . . 1 . . . 2 Catastrophic . | . . . . . . . . Database Lockouts . | . . . . . . . . Manual . | . . . . . . . . Terminals 8 | . . . 5 . . . 3 Fabricators . | . . . . . . . . Repair Stations 3 | . . . . . . . 3 Recycling Units . | . . . . . . . . Scanalyzers . | . . . . . . . . Garrison Access . | . . . . . . . . Terminal Hacks 13 | . . . 4 . 7 . 2 Record 9 | . . . 2 . 7 . . Locate Traps 1 | . . . . . . . 1 Hauler Manifests 1 | . . . 1 . . . . Zone Layout 2 | . . . 1 . . . 1 Fabricator Hacks . | . . . . . . . . Repair Station Hacks 2 | . . . . . . . 2 Scan Component 1 | . . . . . . . 1 Repair 1 | . . . . . . . 1 Recycling Unit Hacks . | . . . . . . . . Scanalyzer . | . . . . . . . . Garrison Access Hacks . | . . . . . . . . Unauthorized Hacks . | . . . . . . . . Terminals . | . . . . . . . . Fabricators . | . . . . . . . . Repair Stations . | . . . . . . . . Recycling Units . | . . . . . . . . Scanalyzers . | . . . . . . . . Garrison Access . | . . . . . . . . Data Cores Recovered . | . . . . . . . . Used . | . . . . . . . . Hacking Detections 3 | . . . 2 . . . 1 Full Trace Events . | . . . . . . . . Feedback Events . | . . . . . . . . Feedback Blocked . | . . . . . . . . Robot Schematics Acquired . | . . . . . . . . Robots Built . | . . . . . . . . Authchips . | . . . . . . . . Time . | . . . . . . . . Total Robot Build Rating . | . . . . . . . . Part Schematics Acquired . | . . . . . . . . Parts Built . | . . . . . . . . Authchips . | . . . . . . . . Time . | . . . . . . . . Total Part Build Rating . | . . . . . . . . Parts Repaired 1 | . . . . . . . 1 Time 51 | . . . . . . . 51 Parts Recycled . | . . . . . . . . Recycled Matter . | . . . . . . . . Retrieved Matter . | . . . . . . . . Retrieved Components . | . . . . . . . . Parts Scanalyzed . | . . . . . . . . Part Schematics Acquired . | . . . . . . . . Parts Damaged . | . . . . . . . . Bothacking | -11 -10 -10 -9 -9 -9 -8 -8 ------------ Run | Yrd Mat Min Mat Min Exi Min Mat Used RIF Installer . | . . . . . . . . Robots Hacked . | . . . . . . . . Non-combat . | . . . . . . . . Combat . | . . . . . . . . Robot Hacks Applied . | . . . . . . . . Relay Couplers Released . | . . . . . . . . Fabnet Peak Effective % . | . . . . . . . . Robots Rewired . | . . . . . . . . Allies Hacked . | . . . . . . . . Hacks Repelled . | . . . . . . . . Allies | -11 -10 -10 -9 -9 -9 -8 -8 -------- Run | Yrd Mat Min Mat Min Exi Min Mat Total Allies . | . . . . . . . . Largest Group . | . . . . . . . . Highest-Rated Group . | . . . . . . . . Highest-Rated Ally . | . . . . . . . . Total Orders . | . . . . . . . . Ally Attacks . | . . . . . . . . Total Damage . | . . . . . . . . Kills . | . . . . . . . . Allies Corrupted . | . . . . . . . . Allies Melted . | . . . . . . . . Intel | -11 -10 -10 -9 -9 -9 -8 -8 ------- Run | Yrd Mat Min Mat Min Exi Min Mat Robot Analysis Total . | . . . . . . . . Derelict Logs Recovered 1 | . . 1 . . . . . Drone Launches . | . . . . . . . . Drone Recoveries . | . . . . . . . . Exploration | -11 -10 -10 -9 -9 -9 -8 -8 ------------- Run | Yrd Mat Min Mat Min Exi Min Mat Turns Passed 3524 | 55 394 586 441 176 454 824 594 Spaces Moved 1836 | 40 240 376 262 66 228 388 236 Core 351 | 6 . . . 59 228 58 . Treads . | . . . . . . . . Legs 1480 | 34 240 376 262 7 . 330 231 Wheels 5 | . . . . . . . 5 Hover . | . . . . . . . . Flight . | . . . . . . . . Fastest Speed 50 | 50 120 120 120 120 200 100 80 Average Speed 148 | 109 120 120 120 190 200 183 138 Slowest Speed 200 | 120 120 120 190 200 200 200 190 Overloaded Moves . | . . . . . . . . Propulsion Burnouts . | . . . . . . . . Robots Hopped . | . . . . . . . . Cave-ins Triggered . | . . . . . . . . Exploration Rate (%) 39 | 4 38 79 24 13 62 74 21 Regions Visited 7 Branch Regions 4 Pre-discovered Areas 1 | . . . . 1 . . . Known Exits Taken 1 | . . . . . . 1 . Unknown Exits Taken 6 | 1 1 1 1 1 1 . . Scrap Searched 2 | . . 1 . . . 1 . Spaces Dug . | . . . . . . . . Terrain Destroyed 77 | . . . 59 18 . . . Melee . | . . . . . . . . Projectile 4 | . . . . 4 . . . AOE 73 | . . . 59 14 . . . Terrain Rammed . | . . . . . . . . Walls Destroyed . | . . . . . . . . Machines Disabled . | . . . . . . . . Actions | -11 -10 -10 -9 -9 -9 -8 -8 --------- Run | Yrd Mat Min Mat Min Exi Min Mat Total 2296 | 51 295 457 338 88 227 439 401 Wait 164 | . 15 21 29 . . 3 96 Move 1829 | 39 239 375 261 65 227 387 236 Hop . | . . . . . . . . Pick Up 41 | 6 6 7 7 3 . 6 6 Fast Attach 8 | . 1 1 3 . . . 3 Attach 28 | 4 3 2 4 3 . 5 7 Detach . | . . . . . . . . Swap 25 | . 2 9 8 1 . 1 4 Drop 17 | . . 11 2 . . 1 3 Fire 173 | . 27 31 22 16 . 33 44 Melee . | . . . . . . . . Ram . | . . . . . . . . Kick 11 | 2 2 . 2 . . 3 2 Crush . | . . . . . . . . Escape Stasis . | . . . . . . . . Rewire . | . . . . . . . . Trap . | . . . . . . . . Miscellaneous . | . . . . . . . . Route ------- -11/Scrapyard -10/Materials (discovered 2 exits: *Mat / [*Min]) -10/Mines (discovered 2 exits: *Mat x2) -9/Materials (discovered 3 exits: Mat / [*Min x2]) -9/Mines -9/Exiles -8/Mines -8/Materials (discovered 1 exit: [Fac]) History --------- Turn | Location | Event 13 | -11/Scrapyard | Discovered new exit (range 15) 56 | -11/Scrapyard | Entered Materials 300 | -10/Materials | Discovered new exit (range 3) 310 | -10/Materials | Build established: Mutant 426 | -10/Materials | Discovered new exit (range 12) 450 | -10/Materials | Entered Mines 525 | -10/Mines | Met a Derelict bent on vengeance 555 | -10/Mines | Excavation squad dispatched 555 | -10/Mines | A large section of the Mines collapsed 565 | -10/Mines | Core integrity fell below 50% 674 | -10/Mines | Core integrity fell below 20% 697 | -10/Mines | Learned 2 Materials zone layouts 740 | -10/Mines | Discovered new exit (range 14) 845 | -10/Mines | Received a Rocket Launcher from a helpful Derelict 907 | -10/Mines | Build established: Scavenger-Mutant 976 | -10/Mines | A weapon hastily lodged in a ceiling crevice suddenly fell to the ground 1013 | -10/Mines | Discovered new exit (range 7) 1036 | -10/Mines | Entered Materials 1036 | -9/Materials | Evolved 2 slots: Propulsion x1, Utility x1 1037 | -9/Materials | Identified exit to Materials 1269 | -9/Materials | Discovered new exit (range 10) 1426 | -9/Materials | Discovered new exit (range 18) 1477 | -9/Materials | Entered Mines 1536 | -9/Mines | Lost 5 parts (1p2n2w) 1574 | -9/Mines | Assembled infested the area 1618 | -9/Mines | Learned location of Storage (-7) 1641 | -9/Mines | Deemed a non-threat by the Exiles lab entrance 1643 | -9/Mines | Discovered new exit (range 5) 1653 | -9/Mines | Entered Exiles 1701 | -9/Exiles | Met 8R-AWN 1735 | -9/Exiles | Met EX-HEX 1761 | -9/Exiles | Build established: Mutant 1793 | -9/Exiles | Met EX-BIN 1975 | -9/Exiles | Met EX-DEC 2079 | -9/Exiles | Discovered new exit (range 17) 2107 | -9/Exiles | Entered Mines 2147 | -8/Mines | Core integrity fell below 50% 2384 | -8/Mines | Core integrity fell below 20% 2808 | -8/Mines | Build established: Scavenger-Mutant 2914 | -8/Mines | Discovered exit to Materials (range 5) 2931 | -8/Mines | Entered Materials 2931 | -8/Materials | Evolved 2 slots: Utility x1, Weapon x1 3220 | -8/Materials | Repaired Imp. Assault Rifle 3412 | -8/Materials | Discovered new exit (range 20) 3510 | -8/Materials | Core integrity fell below 50% 3520 | -8/Materials | Core integrity fell below 20% 3525 | -8/Materials | Destroyed by Y-45 Defender with Beam Rifle Last Messages --------------- X-57 Shotgunner destroyed. Lgt. Nuclear Core destroyed. Knocked back. Acquired 1 matter. Aluminum Leg destroyed. H-61 Shepherd calls for reinforcements. ALERT: Hostile activity reported, dispatching reinforcements to area. Penetrated by Slug. Knocked back. Acquired 8 matter. R-06 Scavenger collects VSS Leg. Slug penetrates Door. Imp. Assault Rifle destroyed. Critical hit (Blast). Knocked back. Aluminum Leg destroyed. Sensor Array destroyed. Hvy. Assault Rifle destroyed. K-01 Serf collects debris. Knocked back. Map ----- +----------------------------------------------------+ | ???????????????????????????????????????? | | ???????????????????????????????????????? | | ???????????????????????????????????????? | | ???????????????????????????????????????? | | ???????????????????????????????????????? | | ???????????????????????????????????????? | | ???????????????????????????????????????? | | ???????????????????????????????????????? | | ???????????????####????????????????????? | | ???????????????]]]]????????????????????? | | ???????????????]]]]????????????????????? | | ??????????????? ????????????????????? | | ?????????????? ## ######## #???? | | ?????????????? # ## #???? | | ?????????????? < # ## #???? | | ?????????????? # ## #???? | | ?????????????####+### # ## #???? | | ?????????????# ####### ## ##### | | ?????????????# ""#?????# # | | ?????????????# Y"#?????# + | | ?????????????# ""#?????# # | | ?????????????# %#?????# ######## | | ?????????????# ] #?????# #??????# | | ?????????????####""/#?????# #??????# | | ????????#########;;g###???###+###??????# | | ????????# @;g #???# ######## | | ????????# ;g #####[* | | ???????## HYx % != | | ???????#; ! % # #####* u | | ???????## % # #???# ######## | | ????????###########+#####?## ## """ ## | | ??????????????# #??# ## "R" ## | | ??????????????# #??# ## " " ## | | ??????????????# #??# ## ## | | ??????????????# #??# ## ]] ## | | ??????????????# #??# ## ]] # | | ??????????????# #?## ## ]] ## | | ??????????????# #?# # ## | | ??????????????# #?# # #? | | ??????????????###########?# ###+#### | | ??????????????????????????# ! ^ | | ????????????#######???????# | | ????????????# """ #???????# """ | | ????????????# """ #???????# """ ### | | ????????????# """ #???????# """ #?# | | ????????????# #???????#// #?# | | ????????????#! #???????#/ #?# | | ??########### !=[#???????# """ #?# | | ??? ! ##= =%!######??# """ #?# | | ??#""""" #####+## ####% """ #?# | +----------------------------------------------------+ Best States ------------- Heat Dissipation 31 Energy Generation 14 Energy Capacity 280 Matter Stores 400 Matter Capacity 400 Sight Range 18 Robot Scan Range 14 Terrain Scan Range 14 Terrain Scan Density 10 Evasion (%) 55 Salvage Targeting 1 Item Schematics ----------------- None Robot Schematics ------------------ None Fabricated ------------ Nothing Alien Tech Used ----------------- None Achievements -------------- Hey, That's Mine! Challenges ------------ None Game ------ Seed InertialReactiveTriangulator Manual? 0 Play Time 00:41:51 Cumulative 5.8 hours Start 2024.04.02 @ 09:44:40 End 2024.04.02 @ 11:13:31 Sessions 3 Manual Loads 0 Difficulty Rogue Special Mode None Game No. 9 Rogue 9 Adventurer 0 Explorer 0 Win Type - Total 0 Types 0/0/0/0/0/0/0/0/0 Lore% 9 Gallery% 8 Achievement% 12 Wizard Run 0 Options --------- Layout 0 ASCII 0 Keyboard 0 Movement Mouse Keybinds 0 Fullscreen 2 Font 24/Smallcaps Map View 76x50 Zoom Use 0% Tactical HUD 0 Map Filters NONE Filters NONE Steam 1 RUN: 7a42c9ea-a19e-484c-9de1-6afa38c8d25b